fUSD/lending_fUSD_20250427
["ID","MTS","AMOUNT","RATE_DAILY","PERIOD"]
[359159572,1745752238573,-400.0,0.00019869,2]
[359159573,1745752238583,-400.0,0.00019869,2]
[359159574,1745752238592,-400.0,0.00019869,2]
[359159576,1745752238602,-403.64,0.00019869,2]
[359159578,1745752238612,-400.0,0.00019869,2]
[359159580,1745752238622,-400.0,0.00019869,2]
[359159582,1745752238631,-400.0,0.00019869,2]
[359159584,1745752238641,-525.59,0.00019869,2]
[359159586,1745752238650,-447.57,0.00019869,2]
[359159588,1745752238660,-400.0,0.00019869,2]
[359159590,1745752238669,-400.0,0.00019869,2]
[359159592,1745752238678,-400.0,0.00019869,2]
[359159594,1745752238688,-400.0,0.00019869,2]
[359159596,1745752238698,-400.0,0.00019869,2]
[359159598,1745752238708,-400.0,0.00019869,2]
[359159600,1745752238717,-400.0,0.00019869,2]
[359159602,1745752238726,-400.0,0.00019869,2]
[359159604,1745752238735,-400.0,0.00019869,2]
[359159607,1745752238745,-428.57,0.00019869,2]
[359159610,1745752238754,-400.0,0.00019869,2]
[359159613,1745752238763,-400.0,0.00019869,2]
[359159616,1745752238772,-400.0,0.00019869,2]
[359159618,1745752238781,-400.0,0.00019869,2]
[359159620,1745752238790,-3415.0,0.00019869,2]
[359159622,1745752238799,-400.0,0.00019869,2]
[359159623,1745752238812,-400.0,0.00019869,2]
[359159625,1745752238825,-400.0,0.00019869,2]
[359159627,1745752238835,-400.0,0.00019869,2]
[359159629,1745752238845,-2932.28,0.00019869,2]
[359159631,1745752238855,-400.0,0.00019869,2]
[359159633,1745752238865,-500.0,0.00019869,2]
[359159635,1745752238874,-529.6,0.00019869,2]
[359159636,1745752238883,-400.0,0.00019869,2]
[359159637,1745752238892,-400.0,0.00019869,2]
[359159638,1745752238904,-400.0,0.00019869,2]
[359159639,1745752238914,-400.0,0.00019869,2]
[359159640,1745752238923,-400.0,0.00019869,2]
[359159641,1745752238932,-417.26,0.00019869,2]
[359159642,1745752238941,-400.0,0.00019869,2]
[359159643,1745752238950,-930.66,0.00019869,2]
[359159644,1745752238959,-400.0,0.00019869,2]
[359159645,1745752238968,-400.0,0.00019869,2]
[359159646,1745752238978,-61974.69,0.00019869,2]
[359159647,1745752238987,-614.21,0.00019869,2]
[359159648,1745752238997,-418.73,0.00019869,2]
[359159649,1745752239006,-509.04,0.00019869,2]
[359159650,1745752239015,-400.0,0.00019869,2]
[359159651,1745752239024,-177.94257697,0.00019869,2]
[359159652,1745752239033,-182.90119853,0.00019869,2]
[359159653,1745752239043,-400.0,0.00019869,2]
[359159654,1745752239051,-400.0,0.00019869,2]
[359159655,1745752239060,-400.0,0.00019869,2]
[359159656,1745752239070,-400.0,0.00019869,2]
[359159657,1745752239080,-400.0,0.00019869,2]
[359159658,1745752239089,-400.0,0.0001987,2]
[359159659,1745752239098,-400.0,0.0001987,2]
[359159660,1745752239108,-400.0,0.0001987,2]
[359159661,1745752239117,-400.0,0.0001987,2]
[359159662,1745752239126,-400.0,0.0001987,2]
[359159663,1745752239136,-400.0,0.0001987,2]
[359159664,1745752239145,-221.82565088,0.0001987,2]
[359159665,1745752239154,-428.59990219,0.0001987,2]
[359159666,1745752239163,-400.0,0.0001987,2]
[359159667,1745752239172,-400.0,0.0001987,2]
[359159668,1745752239182,-400.0,0.0001987,2]
[359159669,1745752239191,-400.0,0.0001987,2]
[359159670,1745752239200,-250.0,0.0001987,2]
[359159671,1745752239210,-424.04701998,0.0001987,2]
[359159672,1745752239219,-400.0,0.0001987,2]
[359159673,1745752239228,-212.52966365,0.0001987,2]
[359159674,1745752239237,-420.57089888,0.0001987,2]
[359159675,1745752239247,-400.0,0.0001987,2]
[359159676,1745752239255,-400.0,0.0001987,2]
[359159677,1745752239265,-395.91724304,0.0001987,2]
[359159678,1745752239274,-400.0,0.0001987,2]
[359159679,1745752239283,-400.0,0.0001987,2]
[359159680,1745752239292,-380.62777358,0.0001987,2]
[359159681,1745752239301,-400.0,0.0001987,2]
[359159682,1745752239310,-194.03558069,0.0001987,2]
[359159683,1745752239320,-400.0,0.0001987,2]
[359159684,1745752239329,-400.0,0.0001987,2]
[359159685,1745752239339,-400.0,0.0001987,2]
[359159686,1745752239348,-539.56964188,0.0001987,2]
[359159687,1745752239357,-400.0,0.0001987,2]
[359159688,1745752239367,-401.32708848,0.0001987,2]
[359159689,1745752239376,-400.0,0.0001987,2]
[359159690,1745752239385,-400.0,0.0001987,2]
[359159691,1745752239394,-400.0,0.0001987,2]
[359159692,1745752239404,-616.39,0.0001987,2]
[359159693,1745752239413,-400.0,0.0001987,2]
[359159694,1745752239422,-400.0,0.0001987,2]
[359159695,1745752239431,-416.32,0.0001987,2]
[359159696,1745752239442,-400.0,0.0001987,2]
[359159697,1745752239452,-400.0,0.0001987,2]
[359159698,1745752239461,-502.24,0.0001987,2]
[359159699,1745752239471,-400.0,0.0001987,2]
[359159700,1745752239481,-534.85,0.0001987,2]
[359159701,1745752239490,-443.24,0.0001987,2]
[359159702,1745752239500,-518.03427882,0.0001987,2]
[359159703,1745752239510,-400.0,0.0001987,2]
[359159704,1745752239519,-483.58,0.0001987,2]
[359159705,1745752239529,-400.0,0.0001987,2]
[359159706,1745752239538,-400.0,0.0001987,2]
[359159707,1745752239548,-425.41760534,0.0001987,2]
[359159708,1745752239557,-400.0,0.0001987,2]
[359159709,1745752239567,-265.16073156,0.0001987,2]
[359159710,1745752239576,-400.0,0.0001987,2]
[359159711,1745752239586,-400.0,0.0001987,2]
[359159712,1745752239595,-400.0,0.0001987,2]
[359159713,1745752239604,-407.42,0.0001987,2]
[359159714,1745752239614,-400.0,0.0001987,2]
[359159715,1745752239623,-400.0,0.0001987,2]
[359159716,1745752239633,-486.15,0.0001987,2]
[359159717,1745752239643,-400.0,0.0001987,2]
[359159718,1745752239652,-400.0,0.0001987,2]
[359159719,1745752239660,-446.06,0.0001987,2]
[359159720,1745752239670,-400.0,0.0001987,2]
[359159721,1745752239679,-400.0,0.0001987,2]
[359159722,1745752239688,-400.0,0.0001987,2]
[359159723,1745752239697,-400.0,0.0001987,2]
[359159724,1745752239706,-400.0,0.0001987,2]
[359159725,1745752239715,-467.59,0.0001987,2]
[359159726,1745752239724,-400.0,0.0001987,2]
[359159727,1745752239733,-400.0,0.0001987,2]
[359159728,1745752239743,-400.0,0.0001987,2]
[359159729,1745752239754,-400.0,0.0001987,2]
[359159730,1745752239764,-455.75921299,0.0001987,2]
[359159731,1745752239774,-400.0,0.0001987,2]
[359159732,1745752239784,-400.0,0.0001987,2]
[359159733,1745752239795,-151.0,0.0001987,2]
[359159734,1745752239804,-151.0,0.0001987,2]
[359159735,1745752239813,-400.0,0.0001987,2]
[359159736,1745752239828,-400.0,0.0001987,2]
[359159737,1745752239838,-400.0,0.0001987,2]
[359159738,1745752239847,-400.0,0.0001987,2]
[359159739,1745752239856,-742.45,0.0001987,2]
[359159740,1745752239866,-151.0,0.0001987,2]
[359159741,1745752239875,-151.0,0.0001987,2]
[359159742,1745752239885,-544.82640004,0.0001987,2]
[359159743,1745752239896,-400.0,0.0001987,2]
[359159744,1745752239907,-400.0,0.0001987,2]
[359159745,1745752239917,-151.0,0.0001987,2]
[359159746,1745752239926,-158.89055,0.0001987,2]
[359159747,1745752239936,-400.0,0.0001987,2]
[359159748,1745752239945,-400.0,0.0001987,2]
[359159749,1745752239954,-400.0,0.0001987,2]
[359159750,1745752239963,-400.0,0.0001987,2]
[359159751,1745752239972,-502.94825262,0.0001987,2]
[359159752,1745752239981,-400.0,0.0001987,2]
[359159753,1745752239990,-400.0,0.0001987,2]
[359159754,1745752240000,-359.20126554,0.0001987,2]
[359159755,1745752240009,-151.0,0.0001987,2]
[359159757,1745752240018,-151.0,0.0001987,2]
[359159758,1745752240026,-400.0,0.0001987,2]
[359159759,1745752240035,-400.0,0.0001987,2]
[359159760,1745752240044,-400.0,0.0001987,2]
[359159761,1745752240053,-400.0,0.0001987,2]
[359159762,1745752240063,-476.46,0.0001987,2]
[359159763,1745752240072,-400.0,0.0001987,2]
[359159764,1745752240081,-400.0,0.0001987,2]
[359159765,1745752240090,-400.0,0.0001987,2]
[359159766,1745752240099,-400.0,0.0001987,2]
[359159767,1745752240109,-400.0,0.0001987,2]
[359159768,1745752240118,-400.0,0.0001987,2]
[359159769,1745752240127,-400.0,0.0001987,2]
[359159770,1745752240137,-400.0,0.0001987,2]
[359159771,1745752240146,-595.39,0.0001987,2]
[359159772,1745752240155,-400.0,0.0001987,2]
[359159773,1745752240164,-400.0,0.0001987,2]
[359159775,1745752240173,-251.04774543,0.0001987,2]
[359159776,1745752240183,-400.0,0.0001987,2]
[359159777,1745752240192,-400.0,0.0001987,2]
[359159778,1745752240201,-400.0,0.0001987,2]
[359159779,1745752240211,-400.0,0.0001987,2]
[359159780,1745752240221,-432.46032167,0.0001987,2]
[359159781,1745752240230,-400.0,0.0001987,2]
[359159782,1745752240239,-400.0,0.0001987,2]
[359159783,1745752240248,-400.0,0.0001987,2]
[359159784,1745752240257,-151.0,0.0001987,2]
[359159785,1745752240266,-151.0,0.0001987,2]
[359159786,1745752240275,-525.27,0.0001987,2]
[359159787,1745752240284,-400.0,0.0001987,2]
[359159788,1745752240294,-416.70939091,0.0001987,2]
[359159789,1745752240303,-151.0,0.0001987,2]
[359159790,1745752240312,-443.26,0.0001987,2]
[359159791,1745752240321,-151.0,0.0001987,2]
[359159792,1745752240331,-400.0,0.0001987,2]
[359159793,1745752240340,-151.0,0.0001987,2]
[359159794,1745752240350,-400.0,0.0001987,2]
[359159796,1745752240360,-206.996829,0.0001987,2]
[359159797,1745752240369,-492.43,0.0001987,2]
[359159798,1745752240378,-400.0,0.0001987,2]
[359159799,1745752240388,-487.15009521,0.0001987,2]
[359159800,1745752240397,-2009.0,0.0001987,2]
[359159801,1745752240407,-400.0,0.0001987,2]
[359159802,1745752240416,-400.0,0.0001987,2]
[359159803,1745752240425,-400.0,0.0001987,2]
[359159804,1745752240435,-1584.75,0.0001987,2]
[359159805,1745752240444,-400.0,0.0001987,2]
[359159806,1745752240453,-400.0,0.0001987,2]
[359159807,1745752240463,-418.95123881,0.0001987,2]
[359159808,1745752240472,-400.0,0.0001987,2]
[359159809,1745752240481,-8093.33,0.0001987,2]
[359159810,1745752240491,-151.0,0.0001987,2]
[359159811,1745752240500,-156.669112,0.0001987,2]
[359159812,1745752240509,-400.0,0.0001987,2]
[359159813,1745752240518,-433.11,0.0001987,2]
[359159814,1745752240527,-413.90398376,0.0001987,2]
[359159815,1745752240537,-400.0,0.0001987,2]
[359159816,1745752240547,-400.0,0.0001987,2]
[359159817,1745752240556,-400.0,0.0001987,2]
[359159818,1745752240565,-400.0,0.0001987,2]
[359159819,1745752240575,-400.0,0.0001987,2]
[359159820,1745752240584,-400.0,0.0001987,2]
[359159821,1745752240594,-400.0,0.0001987,2]
[359159822,1745752240603,-400.0,0.0001987,2]
[359159823,1745752240612,-400.0,0.0001987,2]
[359159824,1745752240621,-788.93,0.0001987,2]
[359159825,1745752240630,-400.0,0.0001987,2]
[359159826,1745752240639,-2183.84,0.0001987,2]
[359159827,1745752240648,-400.0,0.0001987,2]
[359159828,1745752240657,-400.0,0.0001987,2]
[359159829,1745752240863,-54704.88,0.0001987,2]
[359159830,1745752240873,-500.0,0.0001987,2]
[359159831,1745752240882,-400.0,0.0001987,2]
[359159832,1745752240892,-480.58,0.0001987,2]
[359159833,1745752240903,-410.85,0.0001987,2]
[359159834,1745752240913,-404.95,0.0001987,2]
[359159835,1745752240922,-400.0,0.0001987,2]
[359159836,1745752240931,-151.0,0.0001987,2]
[359159837,1745752240941,-287.096119,0.0001987,2]
[359159838,1745752240951,-6185.58,0.0001987,2]
[359159839,1745752240960,-287.096119,0.0001987,2]
[359159840,1745752240970,-400.0,0.0001987,2]
[359159841,1745752240980,-400.0,0.0001987,2]
[359159842,1745752240989,-156.906809,0.0001987,2]
[359159843,1745752240999,-400.0,0.0001987,2]
[359159844,1745752241009,-400.0,0.0001987,2]
[359159845,1745752241019,-287.096119,0.0001987,2]
[359159846,1745752241028,-287.096119,0.0001987,2]
[359159847,1745752241037,-400.0,0.0001987,2]
[359159848,1745752241046,-400.0,0.0001987,2]
[359159849,1745752241056,-400.0,0.0001987,2]
[359159851,1745752241065,-400.0,0.0001987,2]
[359159853,1745752241075,-3005.56,0.0001987,2]
[359159854,1745752241084,-151.0,0.0001987,2]
[359159856,1745752241094,-400.0,0.0001987,2]
[359159857,1745752241103,-151.0,0.0001987,2]
[359159859,1745752241112,-400.0,0.0001987,2]
[359159861,1745752241121,-400.0,0.0001987,2]
[359159863,1745752241131,-400.0,0.0001987,2]
[359159866,1745752241140,-218.72541171,0.0001987,2]
[359159867,1745752241149,-1044.7,0.0001987,2]
[359159868,1745752241157,-376.2873802,0.0001987,2]
[359159869,1745752241166,-400.0,0.0001987,2]
[359159870,1745752241175,-400.0,0.0001987,2]
[359159871,1745752241185,-400.0,0.0001987,2]
[359159872,1745752241194,-400.0,0.0001987,2]
[359159873,1745752241203,-151.0,0.0001987,2]
[359159874,1745752241213,-400.0,0.0001987,2]
[359159875,1745752241222,-157.034034,0.0001987,2]
[359159876,1745752241231,-400.0,0.0001987,2]
[359159877,1745752241240,-458.2918431,0.0001987,2]
[359159878,1745752241249,-402.55,0.0001987,2]
[359159879,1745752241258,-400.0,0.0001987,2]
[359159880,1745752241267,-463.27,0.0001987,2]
[359159881,1745752241276,-400.0,0.0001987,2]
[359159882,1745752241286,-540.44979702,0.0001987,2]
[359159883,1745752241295,-400.0,0.0001987,2]
[359159884,1745752241304,-581.88,0.0001987,2]
[359159885,1745752241313,-400.0,0.0001987,2]
[359159886,1745752241323,-151.0,0.0001987,2]
[359159887,1745752241332,-159.431295,0.0001987,2]
[359159888,1745752241341,-165.16955834,0.0001987,2]
[359159889,1745752241350,-400.0,0.0001987,2]
[359159890,1745752241360,-516.58506508,0.0001987,2]
[359159891,1745752241369,-400.0,0.0001987,2]
[359159892,1745752241379,-400.0,0.0001987,2]
[359159893,1745752241388,-400.0,0.0001987,2]
[359159894,1745752241397,-410.39359262,0.0001987,2]
[359159895,1745752241406,-400.0,0.0001987,2]
[359159896,1745752241416,-483.08,0.0001987,2]
[359159897,1745752241425,-400.0,0.0001987,2]
[359159898,1745752241436,-408.96783508,0.0001987,2]
[359159899,1745752241445,-535.99,0.0001987,2]
[359159900,1745752241454,-400.0,0.0001987,2]
[359159901,1745752241464,-1032.39,0.0001987,2]
[359159902,1745752241473,-400.0,0.0001987,2]
[359159903,1745752241483,-443.24983667,0.0001987,2]
[359159904,1745752241492,-400.0,0.0001987,2]
[359159905,1745752241501,-400.0,0.0001987,2]
[359159906,1745752241511,-400.0,0.0001987,2]
[359159907,1745752241520,-400.0,0.0001987,2]
[359159908,1745752241529,-400.0,0.0001987,2]
[359159909,1745752241538,-400.0,0.0001987,2]
[359159910,1745752241548,-400.0,0.0001987,2]
[359159911,1745752241557,-400.0,0.0001987,2]
[359159912,1745752241566,-458.01277695,0.0001987,2]
[359159913,1745752241575,-400.0,0.0001987,2]
[359159914,1745752241585,-400.0,0.0001987,2]
[359159915,1745752241594,-400.0,0.0001987,2]
[359159916,1745752241603,-400.0,0.0001987,2]
[359159917,1745752241612,-460.41,0.0001987,2]
[359159918,1745752241621,-400.0,0.0001987,2]
[359159919,1745752241630,-184.47188474,0.0001987,2]
[359159920,1745752241639,-400.0,0.0001987,2]
[359159921,1745752241648,-400.0,0.0001987,2]
[359159922,1745752241657,-522.62816855,0.0001987,2]
[359159923,1745752241666,-1125.81,0.0001987,2]
[359159924,1745752241675,-400.0,0.0001987,2]
[359159925,1745752241684,-400.0,0.0001987,2]
[359159926,1745752241694,-411.81868988,0.0001987,2]
[359159927,1745752241703,-400.0,0.0001987,2]
[359159928,1745752241712,-400.0,0.0001987,2]
[359159929,1745752241721,-400.0,0.0001987,2]
[359159930,1745752241730,-400.0,0.0001987,2]
[359159931,1745752241740,-409.51697781,0.0001987,2]
[359159932,1745752241750,-400.0,0.0001987,2]
[359159933,1745752241759,-400.0,0.0001987,2]
[359159934,1745752241768,-401.65162275,0.00019871,2]
[359159935,1745752241777,-400.0,0.00019871,2]
[359159936,1745752241786,-400.0,0.00019871,2]
[359159937,1745752241795,-400.0,0.00019871,2]
[359159938,1745752241804,-406.00572695,0.00019871,2]
[359159939,1745752241814,-404.03,0.00019871,2]
[359159940,1745752241825,-400.0,0.00019871,2]
[359159941,1745752241835,-420.6709194,0.00019871,2]
[359159942,1745752241844,-400.0,0.00019871,2]
[359159943,1745752241853,-400.0,0.00019871,2]
[359159944,1745752241862,-400.0,0.00019871,2]
[359159945,1745752241873,-400.0,0.00019871,2]
[359159946,1745752241882,-400.0,0.00019871,2]
[359159947,1745752241892,-203.26657215,0.00019871,2]
[359159948,1745752242180,-586.61,0.00019869,2]
[359159949,1745752242189,-400.0,0.0001987,2]
[359159950,1745752242199,-196.73342785,0.00019871,2]
[359159951,1745752242208,-82.74532169,0.00019871,2]
[359159957,1745752243357,-1221.47175222,0.00019828,2]
[359159958,1745752243366,-317.25467831,0.00019871,2]
[359159959,1745752243376,-412.49106008,0.00019871,2]
[359159960,1745752243386,-400.0,0.00019871,2]
[359159961,1745752243395,-400.0,0.00019871,2]
[359159962,1745752243405,-400.0,0.00019871,2]
[359159963,1745752243414,-400.0,0.00019871,2]
[359159964,1745752243424,-400.0,0.00019871,2]
[359159965,1745752243434,-490.83,0.00019871,2]
[359159966,1745752243443,-400.0,0.00019871,2]
[359159967,1745752243453,-400.0,0.00019871,2]
[359159968,1745752243463,-400.0,0.00019871,2]
[359159969,1745752243472,-400.0,0.00019871,2]
[359159970,1745752243482,-400.0,0.00019871,2]
[359159971,1745752243491,-400.0,0.00019871,2]
[359159972,1745752243501,-400.0,0.00019871,2]
[359159973,1745752243511,-400.0,0.00019871,2]
[359159974,1745752243520,-400.0,0.00019871,2]
[359159975,1745752243530,-2560.349,0.00019871,2]
[359159976,1745752243540,-163.079,0.00019871,2]
[359159977,1745752243549,-508.43078616,0.00019871,2]
[359159978,1745752243559,-400.0,0.00019871,2]
[359159979,1745752243569,-400.0,0.00019871,2]
[359159980,1745752243578,-151.0,0.00019871,2]
[359159981,1745752243588,-428.58,0.00019871,2]
[359159982,1745752243597,-159.057514,0.00019871,2]
[359159983,1745752243606,-151.0,0.00019871,2]
[359159984,1745752243616,-400.0,0.00019871,2]
[359159985,1745752243627,-400.0,0.00019871,2]
[359159986,1745752243636,-400.0,0.00019871,2]
[359159987,1745752243646,-400.0,0.00019871,2]
[359159988,1745752243656,-400.0,0.00019871,2]
[359159989,1745752243666,-1135.61,0.00019871,2]
[359159991,1745752243675,-400.0,0.00019871,2]
[359159992,1745752243684,-400.0,0.00019871,2]
[359159993,1745752243693,-400.0,0.00019871,2]
[359159994,1745752243702,-400.0,0.00019871,2]
[359159995,1745752243712,-400.0,0.00019871,2]
[359159996,1745752243722,-500.0,0.00019871,2]
[359159997,1745752243731,-151.0,0.00019871,2]
[359159998,1745752243740,-400.0,0.00019871,2]
[359159999,1745752243749,-400.0,0.00019871,2]
[359160000,1745752243758,-400.0,0.00019871,2]
[359160001,1745752243768,-400.0,0.00019871,2]
[359160002,1745752243777,-400.0,0.00019871,2]
[359160003,1745752243786,-400.0,0.00019871,2]
[359160004,1745752243795,-400.0,0.00019871,2]
[359160005,1745752243804,-400.0,0.00019871,2]
[359160006,1745752243813,-400.0,0.00019871,2]
[359160007,1745752243824,-400.0,0.00019871,2]
[359160008,1745752243834,-400.0,0.00019871,2]
[359160009,1745752243843,-474.62,0.00019871,2]
[359160010,1745752243852,-458.05,0.00019871,2]
[359160011,1745752243863,-400.0,0.00019871,2]
[359160012,1745752243872,-400.0,0.00019871,2]
[359160013,1745752243880,-400.0,0.00019871,2]
[359160014,1745752243890,-430.02665274,0.00019871,2]
[359160015,1745752243901,-500.0,0.00019871,2]
[359160016,1745752243911,-400.0,0.00019871,2]
[359160017,1745752243920,-400.0,0.00019871,2]
[359160018,1745752243930,-176.35483164,0.00019871,2]
[359160019,1745752243938,-400.0,0.00019871,2]
[359160020,1745752243948,-400.0,0.00019871,2]
[359160021,1745752243958,-174.005283,0.00019871,2]
[359160022,1745752243968,-174.005283,0.00019871,2]
[359160023,1745752243977,-174.005283,0.00019871,2]
[359160024,1745752243986,-423.63,0.00019871,2]
[359160025,1745752243996,-174.005283,0.00019871,2]
[359160026,1745752244005,-174.005283,0.00019871,2]
[359160027,1745752244015,-174.005283,0.00019871,2]
[359160028,1745752244024,-400.0,0.00019871,2]
[359160029,1745752244033,-1759.54,0.00019871,2]
[359160030,1745752244043,-400.0,0.00019871,2]
[359160031,1745752244052,-1479.73,0.00019871,2]
[359160032,1745752244061,-151.0,0.00019871,2]
[359160033,1745752244070,-400.0,0.00019871,2]
[359160034,1745752244079,-400.0,0.00019871,2]
[359160035,1745752244088,-400.0,0.00019871,2]
[359160036,1745752244097,-400.0,0.00019871,2]
[359160037,1745752244106,-400.0,0.00019871,2]
[359160038,1745752244116,-400.0,0.00019871,2]
[359160039,1745752244125,-469.15,0.00019871,2]
[359160040,1745752244134,-400.0,0.00019871,2]
[359160041,1745752244143,-411.97,0.00019871,2]
[359160042,1745752244152,-453.58,0.00019871,2]
[359160043,1745752244161,-491.8,0.00019871,2]
[359160044,1745752244171,-400.0,0.00019871,2]
[359160045,1745752244180,-400.0,0.00019871,2]
[359160046,1745752244189,-400.0,0.00019871,2]
[359160047,1745752244198,-153.273663,0.00019871,2]
[359160048,1745752244207,-400.0,0.00019871,2]
[359160049,1745752244216,-400.0,0.00019871,2]
[359160050,1745752244225,-400.0,0.00019871,2]
[359160051,1745752244234,-400.0,0.00019871,2]
[359160052,1745752244244,-400.0,0.00019871,2]
[359160053,1745752244253,-400.0,0.00019871,2]
[359160054,1745752244262,-400.0,0.00019871,2]
[359160055,1745752244271,-400.0,0.00019871,2]
[359160056,1745752244280,-400.0,0.00019871,2]
[359160057,1745752244289,-488.94,0.00019871,2]
[359160058,1745752244298,-400.0,0.00019871,2]
[359160059,1745752244307,-400.0,0.00019871,2]
[359160060,1745752244316,-445.24,0.00019871,2]
[359160061,1745752244326,-1960.19,0.00019871,2]
[359160062,1745752244335,-400.0,0.00019871,2]
[359160063,1745752244344,-400.0,0.00019871,2]
[359160064,1745752244353,-400.0,0.00019871,2]
[359160065,1745752244363,-151.0,0.00019871,2]
[359160066,1745752244372,-151.0,0.00019871,2]
[359160067,1745752244381,-237.653654,0.00019871,2]
[359160068,1745752244391,-611.97,0.00019871,2]
[359160069,1745752244400,-151.0,0.00019871,2]
[359160070,1745752244410,-533.72,0.00019871,2]
[359160071,1745752244419,-151.0,0.00019871,2]
[359160072,1745752244428,-151.0,0.00019871,2]
[359160073,1745752244437,-151.0,0.00019871,2]
[359160074,1745752244446,-151.0,0.00019871,2]
[359160075,1745752244457,-151.0,0.00019871,2]
[359160076,1745752244466,-400.0,0.00019871,2]
[359160077,1745752244475,-400.0,0.00019871,2]
[359160078,1745752244485,-400.0,0.00019871,2]
[359160079,1745752244494,-400.0,0.00019871,2]
[359160080,1745752244503,-151.0,0.00019871,2]
[359160081,1745752244512,-151.0,0.00019871,2]
[359160082,1745752244521,-151.0,0.00019871,2]
[359160083,1745752244530,-400.0,0.00019871,2]
[359160084,1745752244539,-482.31,0.00019871,2]
[359160085,1745752244549,-400.0,0.00019871,2]
[359160086,1745752244559,-151.0,0.00019871,2]
[359160087,1745752244568,-151.0,0.00019871,2]
[359160088,1745752244577,-151.0,0.00019871,2]
[359160089,1745752244587,-523.81,0.00019871,2]
[359160090,1745752244596,-424.03,0.00019871,2]
[359160091,1745752244606,-151.0,0.00019871,2]
[359160092,1745752244615,-151.0,0.00019871,2]
[359160093,1745752244624,-151.0,0.00019871,2]
[359160094,1745752244633,-151.0,0.00019871,2]
[359160095,1745752244642,-151.0,0.00019871,2]
[359160096,1745752244652,-151.0,0.00019871,2]
[359160097,1745752244661,-151.0,0.00019871,2]
[359160098,1745752244670,-151.0,0.00019871,2]
[359160099,1745752244680,-151.0,0.00019871,2]
[359160100,1745752244689,-287.096119,0.00019871,2]
[359160101,1745752244699,-287.096119,0.00019871,2]
[359160102,1745752244708,-287.096119,0.00019871,2]
[359160103,1745752244718,-287.096119,0.00019871,2]
[359160104,1745752244728,-287.096119,0.00019871,2]
[359160105,1745752244737,-287.096119,0.00019871,2]
[359160106,1745752244746,-151.0,0.00019871,2]
[359160107,1745752244756,-151.0,0.00019871,2]
[359160108,1745752244766,-151.0,0.00019871,2]
[359160109,1745752244775,-160.40129713,0.00019871,2]
[359160110,1745752244784,-2005.80494458,0.00019871,2]
[359160111,1745752244793,-400.0,0.00019872,2]
[359160112,1745752244803,-400.0,0.00019872,2]
[359160113,1745752244812,-174.005283,0.00019872,2]
[359160114,1745752244823,-174.005283,0.00019872,2]
[359160115,1745752244834,-500.0,0.00019873,2]
[359160116,1745752244844,-500.0,0.00019873,2]
[359160117,1745752244854,-484.38547257,0.00019873,2]
[359160118,1745752244863,-153.3206912,0.00019873,2]
[359160119,1745752244874,-500.0,0.00019873,2]
[359160120,1745752244883,-500.0,0.00019873,2]